fUST/lending_fUST_20250406
["ID","MTS","AMOUNT","RATE_DAILY","PERIOD"]
[357243449,1743937406248,165.7,0.000285,30]
[357243450,1743937423990,188.73,0.000247,14]
[357243451,1743937424433,188.73,0.000285,14]
[357243454,1743937562316,165.14,0.000247,14]
[357243455,1743937562622,165.14,0.000284,14]
[357243456,1743937594795,157.58,0.000247,14]
[357243457,1743937601802,165.7,0.000247,14]
[357243471,1743937664969,185.563156,0.00013699,2]
[357243472,1743937699823,165.14,0.000247,14]
[357243473,1743937700271,165.14,0.000287,14]
[357243513,1743937788938,157.59,0.000247,14]
[357243514,1743937797109,165.7,0.000247,14]
[357243520,1743937832371,-300.0,0.00022326,2]
[357243521,1743937832382,-22089.8244983,0.00022327,2]
[357243522,1743937832391,-2515.1446188,0.00022483,2]
[357243523,1743937832400,-2193.60634028,0.00023173,2]
[357243524,1743937832410,-248.79429982,0.00023226,2]
[357243525,1743937832420,-1488.54126814,0.00023226,2]
[357243526,1743937832429,-409.52934191,0.00023233,2]
[357243527,1743937832438,-248.79429978,0.00023238,2]
[357243528,1743937832447,-248.79429978,0.0002325,2]
[357243529,1743937832456,-248.79429978,0.00023261,2]
[357243530,1743937832465,-2024.11689631,0.00023273,2]
[357243531,1743937832475,-152.26,0.00023273,2]
[357243532,1743937832484,-248.79429978,0.00023273,2]
[357243533,1743937832493,-160.0,0.00023308,2]
[357243534,1743937832502,-289.507623,0.00023325,2]
[357243535,1743937832512,-289.507623,0.00023325,2]
[357243536,1743937832521,-500.0,0.00023325,2]
[357243537,1743937832531,-200.15968048,0.00023325,2]
[357243538,1743937832540,-6154.36666972,0.00023325,2]
[357243539,1743937832549,-191.81180409,0.00023325,2]
[357243540,1743937832573,-308.18819591,0.00023325,2]
[357243541,1743937832583,-143.60703174,0.00023325,2]
[357243542,1743937832594,-378.61315085,0.00023325,2]
[357243543,1743937832604,-526.88058844,0.00023325,2]
[357243544,1743937832628,-5627.48608128,0.00023325,2]
[357243545,1743937832637,-500.0,0.00023325,2]
[357243546,1743937832647,-6154.36666972,0.00023325,2]
[357243547,1743937832659,-500.0,0.00023325,2]
[357243548,1743937832668,-6154.36666972,0.00023325,2]
[357243549,1743937832677,-500.0,0.00023325,2]
[357243550,1743937832687,-6154.36666972,0.00023325,2]
[357243551,1743937832696,-6154.36666972,0.00023325,2]
[357243552,1743937832705,-500.0,0.00023325,2]
[357243553,1743937832715,-6154.36666972,0.00023325,2]
[357243554,1743937832724,-500.0,0.00023325,2]
[357243555,1743937832733,-6154.36666972,0.00023325,2]
[357243556,1743937832743,-463.99605814,0.00023325,2]
[357243557,1743937832754,-6154.36666972,0.00023325,2]
[357243558,1743937832763,-500.0,0.00023325,2]
[357243559,1743937832772,-6154.36666972,0.00023325,2]
[357243560,1743937832782,-500.0,0.00023325,2]
[357243561,1743937832791,-6154.36666972,0.00023325,2]
[357243562,1743937832800,-500.0,0.00023325,2]
[357243563,1743937832810,-6154.36666972,0.00023325,2]
[357243564,1743937832819,-500.0,0.00023325,2]
[357243565,1743937832829,-6154.36666972,0.00023325,2]
[357243566,1743937832839,-500.0,0.00023325,2]
[357243567,1743937832848,-6154.36666972,0.00023325,2]
[357243568,1743937832858,-500.0,0.00023325,2]
[357243569,1743937832867,-6154.36666972,0.00023325,2]
[357243570,1743937832876,-500.0,0.00023325,2]
[357243571,1743937832886,-6154.36666972,0.00023325,2]
[357243572,1743937832895,-6154.36666972,0.00023325,2]
[357243573,1743937832905,-500.0,0.00023325,2]
[357243574,1743937832914,-6154.36666972,0.00023325,2]
[357243575,1743937832924,-500.0,0.00023325,2]
[357243576,1743937832933,-500.0,0.00023325,2]
[357243577,1743937832942,-6154.36666972,0.00023325,2]
[357243578,1743937832951,-6154.36666972,0.00023325,2]
[357243579,1743937832961,-500.0,0.00023325,2]
[357243580,1743937832971,-6154.36666972,0.00023325,2]
[357243581,1743937833117,-6154.36666972,0.00023325,2]
[357243582,1743937833138,-6154.36666972,0.00023325,2]
[357243583,1743937833148,-500.0,0.00023325,2]
[357243584,1743937833158,-6154.36666972,0.00023325,2]
[357243585,1743937833169,-6154.36666972,0.00023325,2]
[357243586,1743937833179,-500.0,0.00023325,2]
[357243587,1743937833188,-6154.36666972,0.00023325,2]
[357243588,1743937833198,-500.0,0.00023325,2]
[357243589,1743937833207,-6154.36666972,0.00023325,2]
[357243590,1743937833218,-6154.36666972,0.00023325,2]
[357243591,1743937833227,-500.0,0.00023325,2]
[357243592,1743937833236,-6154.36666972,0.00023325,2]
[357243593,1743937833246,-500.0,0.00023325,2]
[357243594,1743937833256,-6154.36666972,0.00023325,2]
[357243595,1743937833265,-6154.36666972,0.00023325,2]
[357243596,1743937833275,-500.0,0.00023325,2]
[357243597,1743937833284,-6154.36666972,0.00023325,2]
[357243598,1743937833294,-6154.36666972,0.00023325,2]
[357243599,1743937833305,-500.0,0.00023325,2]
[357243600,1743937833315,-6154.36666972,0.00023325,2]
[357243601,1743937833325,-6154.36666972,0.00023325,2]
[357243602,1743937833335,-6154.36666972,0.00023325,2]
[357243603,1743937833345,-6154.36666972,0.00023325,2]
[357243604,1743937833354,-6154.36666972,0.00023325,2]
[357243605,1743937833364,-6154.36666972,0.00023325,2]
[357243606,1743937833374,-6154.36666972,0.00023325,2]
[357243607,1743937833384,-6154.36666972,0.00023325,2]
[357243608,1743937833393,-6154.36666972,0.00023325,2]
[357243609,1743937833404,-6154.36666972,0.00023325,2]
[357243610,1743937833414,-6154.36666972,0.00023325,2]
[357243611,1743937833425,-6154.36666972,0.00023325,2]
[357243612,1743937833435,-6154.36666972,0.00023325,2]
[357243613,1743937833445,-6154.36666972,0.00023325,2]
[357243614,1743937833455,-6154.36666972,0.00023325,2]
[357243615,1743937833465,-6154.36666972,0.00023325,2]
[357243616,1743937833475,-6154.36666972,0.00023325,2]
[357243617,1743937833484,-6154.36666972,0.00023325,2]
[357243618,1743937833494,-6154.36666972,0.00023325,2]
[357243619,1743937833503,-6154.36666972,0.00023325,2]
[357243620,1743937833512,-6154.36666972,0.00023325,2]
[357243621,1743937833522,-6154.36666972,0.00023325,2]
[357243622,1743937833532,-6154.36666972,0.00023325,2]
[357243623,1743937833541,-6154.36666972,0.00023325,2]
[357243624,1743937833551,-6154.36666972,0.00023325,2]
[357243625,1743937833561,-6154.36666972,0.00023325,2]
[357243626,1743937833570,-6154.36666972,0.00023325,2]
[357243627,1743937833580,-6154.36666972,0.00023325,2]
[357243628,1743937833590,-5949.22111407,0.00023325,2]
[357243629,1743937833600,-5949.22111407,0.00023325,2]
[357243630,1743937833610,-5949.22111407,0.00023325,2]
[357243631,1743937833619,-5949.22111407,0.00023325,2]
[357243632,1743937833630,-5949.22111407,0.00023325,2]
[357243633,1743937833640,-5949.22111407,0.00023325,2]
[357243634,1743937833649,-1114.49047605,0.00023325,2]
[357243635,1743937833663,-4834.73063802,0.00023325,2]
[357243636,1743937833674,-3670.10951256,0.00023325,2]
[357243637,1743937837051,165.14,0.000247,14]
[357243639,1743937838228,-212.54079693,0.00023225,2]
[357243640,1743937838237,-481.65920307,0.00023325,2]
[357243641,1743937838250,-895.10319183,0.00023325,2]
[357243642,1743937838261,-434.81370448,0.00023325,2]
[357243646,1743937840626,-467.53550213,0.00023325,2]
[357243647,1743937840636,-2227.31201529,0.00023325,2]
[357243661,1743937843403,-3721.90909878,0.00023325,2]
[357243663,1743937843413,-1108.69660122,0.00023325,2]
[357243668,1743937843456,-4840.52451285,0.00023325,2]
[357243669,1743937843466,-5949.22111407,0.00023325,2]
[357243670,1743937843476,-5949.22111407,0.00023325,2]
[357243671,1743937843485,-5949.22111407,0.00023325,2]
[357243672,1743937843495,-5949.22111407,0.00023325,2]
[357243673,1743937843504,-5949.22111407,0.00023325,2]
[357243674,1743937843514,-4392.15166834,0.00023325,2]
[357243675,1743937843532,-781.04538902,0.00023325,2]
[357243726,1743937846385,-776.02405671,0.00023325,2]
[357243727,1743937846396,-75.38541329,0.00023325,2]
[357243728,1743937846440,-654.40000005,0.00023325,2]
[357243729,1743937919599,496.812154,0.0003,120]
[357243731,1743937973171,165.14,0.000249,14]
[357243732,1743937993401,165.7,0.000249,14]
[357243733,1743938014887,-200.0,0.000309,120]
[357243734,1743938014907,-63.45,0.000309,120]
[357243735,1743938108497,165.15,0.000275,14]
[357243736,1743938187604,165.71,0.000247,14]
[357243737,1743938243733,165.15,0.000247,14]
[357243738,1743938320741,157.49388037,0.00027397,16]
[357243759,1743938901513,185.563156,0.00013699,2]
[357243761,1743938915458,278.52988699,0.0001,2]
[357243764,1743938922276,156.01512964,9e-05,2]
[357243765,1743938925839,630.54916698,0.0001,2]
[357243778,1743939025974,200.0,0.0003,10]
[357243806,1743939038356,-291.8658686,0.00022365,2]
[357243807,1743939038366,-520.6841314,0.00022485,2]
[357243808,1743939038378,-1847.2276994,0.00022485,2]
[357243809,1743939038387,-267.081938,0.00022633,4]
[357243810,1743939038396,-300.0,0.00022634,2]
[357243811,1743939038406,-13120.8162603,0.00022635,2]
[357243812,1743939038417,-8556.6951461,0.00022635,2]
[357243813,1743939038426,-4566.6228737,0.0002294,2]
[357243814,1743939038436,-2138.76908498,0.00023217,2]
[357243815,1743939038445,-761.67776163,0.00023217,2]
[357243816,1743939038455,-637.41472509,0.00023316,2]
[357243817,1743939038464,-211.00778374,0.00023316,2]
[357243818,1743939038473,-1441.02976881,0.00023316,2]
[357243819,1743939038483,-500.0,0.00023316,2]
[357243820,1743939038492,-1441.02976881,0.00023316,2]
[357243821,1743939038501,-500.0,0.00023316,2]
[357243822,1743939038510,-1441.02976881,0.00023316,2]
[357243823,1743939038519,-500.0,0.00023316,2]
[357243824,1743939038529,-1441.02976881,0.00023316,2]
[357243825,1743939038538,-1441.02976881,0.00023316,2]
[357243826,1743939038548,-500.0,0.00023316,2]
[357243827,1743939038557,-1441.02976881,0.00023316,2]
[357243828,1743939038567,-500.0,0.00023316,2]
[357243829,1743939038578,-1441.02976881,0.00023316,2]
[357243830,1743939038589,-500.0,0.00023316,2]
[357243831,1743939038599,-1441.02976881,0.00023316,2]
[357243832,1743939038608,-500.0,0.00023316,2]
[357243833,1743939038616,-1441.02976881,0.00023316,2]
[357243834,1743939038625,-500.0,0.00023316,2]
[357243835,1743939038634,-500.0,0.00023316,2]
[357243836,1743939038644,-1441.02976881,0.00023316,2]
[357243837,1743939038653,-280.85471003,0.00023316,2]
[357243838,1743939038665,-1160.17505878,0.00023316,2]
[357243839,1743939038674,-500.0,0.00023316,2]
[357243840,1743939038683,-119.22752685,0.00023316,2]
[357243873,1743939043571,-380.77247315,0.00023316,2]
[357243874,1743939043580,-1441.02976881,0.00023316,2]
[357243875,1743939043589,-1441.02976881,0.00023316,2]
[357243876,1743939043599,-70.63198054,0.00023316,2]
[357243877,1743939043611,-466.95351204,0.00023316,2]
[357243878,1743939043621,-500.0,0.00023316,2]
[357243879,1743939043631,-1441.02976881,0.00023316,2]
[357243880,1743939043641,-1441.02976881,0.00023316,2]
[357243881,1743939043650,-409.99921163,0.00023316,2]
[357243882,1743939043660,-1441.02976881,0.00023316,2]
[357243883,1743939043669,-1441.02976881,0.00023316,2]
[357243884,1743939043679,-500.0,0.00023316,2]
[357243885,1743939043688,-1441.02976881,0.00023316,2]
[357243886,1743939043698,-1441.02976881,0.00023316,2]
[357243887,1743939043712,-500.0,0.00023316,2]
[357243888,1743939043722,-1441.02976881,0.00023316,2]
[357243889,1743939043731,-1441.02976881,0.00023316,2]
[357243891,1743939043740,-500.0,0.00023316,2]
[357243892,1743939043751,-1441.02976881,0.00023316,2]
[357243893,1743939043760,-1441.02976881,0.00023316,2]
[357243894,1743939043769,-1441.02976881,0.00023316,2]
[357243895,1743939043779,-1441.02976881,0.00023316,2]
[357243896,1743939043790,-1441.02976881,0.00023316,2]
[357243897,1743939043799,-1441.02976881,0.00023316,2]
[357243898,1743939043808,-1441.02976881,0.00023316,2]
[357243899,1743939043817,-1441.02976881,0.00023316,2]
[357243900,1743939043827,-1441.02976881,0.00023316,2]
[357243901,1743939043836,-1441.02976881,0.00023316,2]
[357243902,1743939043846,-1441.02976881,0.00023316,2]
[357243903,1743939043855,-1441.02976881,0.00023316,2]
[357243904,1743939043863,-1441.02976881,0.00023316,2]
[357243905,1743939043873,-1441.02976881,0.00023316,2]
[357243906,1743939043883,-1441.02976881,0.00023316,2]
[357243907,1743939043892,-1441.02976881,0.00023316,2]
[357243908,1743939043902,-1441.02976881,0.00023316,2]
[357243909,1743939043911,-1441.02976881,0.00023316,2]
[357243910,1743939043920,-1441.02976881,0.00023316,2]
[357243911,1743939043930,-1441.02976881,0.00023316,2]
[357243912,1743939043939,-1441.02976881,0.00023316,2]
[357243913,1743939043949,-1370.74716115,0.00023316,2]
[357243922,1743939046544,-70.28260766,0.00023316,2]
[357243923,1743939046554,-1441.02976881,0.00023316,2]
[357243924,1743939046564,-114.29572353,0.00023316,2]
[357243925,1743939046601,-1326.73404528,0.00023316,2]
[357243926,1743939046611,-1441.02976881,0.00023316,2]
[357243927,1743939046621,-1441.02976881,0.00023316,2]
[357243928,1743939046631,-1441.02976881,0.00023316,2]
[357243929,1743939046641,-1441.02976881,0.00023316,2]
[357243930,1743939046650,-1441.02976881,0.00023316,2]
[357243931,1743939046660,-1441.02976881,0.00023316,2]
[357243932,1743939046670,-1441.02976881,0.00023316,2]
[357243933,1743939046680,-1441.02976881,0.00023316,2]
[357243934,1743939046691,-1441.02976881,0.00023316,2]
[357243935,1743939046703,-1441.02976881,0.00023316,2]
[357243937,1743939046715,-1441.02976881,0.00023316,2]
[357243939,1743939046725,-1441.02976881,0.00023316,2]
[357243940,1743939046735,-1441.02976881,0.00023316,2]
[357243941,1743939046747,-1441.02976881,0.00023316,2]
[357243942,1743939046756,-1441.02976881,0.00023316,2]
[357243943,1743939046766,-1441.02976881,0.00023316,2]
[357243944,1743939046776,-1441.02976881,0.00023316,2]
[357243945,1743939046787,-1441.02976881,0.00023316,2]
[357243946,1743939046796,-1441.02976881,0.00023316,2]
[357243947,1743939046806,-1441.02976881,0.00023316,2]
[357243948,1743939046816,-45081.75234322,0.00023318,2]
[357243949,1743939046826,-152.26,0.00023319,2]
[357243950,1743939046835,-500.0,0.00023322,2]
[357243951,1743939046844,-209.00000111,0.00023325,2]
[357243952,1743939046853,-339.74488891,0.00023373,2]
[357243953,1743939046863,-500.0,0.00023373,2]
[357243954,1743939046872,-500.0,0.00023373,2]
[357243955,1743939046882,-500.0,0.00023373,2]
[357243956,1743939046891,-500.0,0.00023373,2]
[357243957,1743939046900,-414.50904082,0.00023373,2]
[357243958,1743939046910,-500.0,0.00023373,2]
[357243959,1743939046919,-500.0,0.00023373,2]
[357243960,1743939046929,-433.57303607,0.00023373,2]
[357243961,1743939046938,-501.42712041,0.00023373,2]
[357243962,1743939046947,-500.99111064,0.00023373,2]
[357243963,1743939046956,-500.0,0.00023373,2]
[357243964,1743939046965,-500.0,0.00023373,2]
[357243965,1743939046975,-500.0,0.00023373,2]
[357243966,1743939046983,-500.0,0.00023373,2]
[357243967,1743939046992,-500.0,0.00023373,2]
[357243968,1743939047001,-500.0,0.00023373,2]
[357243969,1743939047011,-500.0,0.00023373,2]
[357243970,1743939047021,-500.0,0.00023373,2]
[357243971,1743939047030,-761.67776163,0.00023528,2]
[357243972,1743939047039,-761.67776163,0.00023838,2]
[357243973,1743939047048,-7095.65111393,0.000239,5]
[357243974,1743939047057,-250.0,0.00024,2]
[357243975,1743939047066,-761.67776163,0.00024149,2]
[357243976,1743939047075,-761.67776163,0.00024459,2]
[357243977,1743939047084,-278.31820959,0.00024558,3]
[357243978,1743939047093,-298.37370056,0.00024558,3]
[357243979,1743939047102,-157548.26997535,0.00024559,2]
[357243980,1743939047140,-1634.46481128,0.00024559,2]
[357243981,1743939070567,203.858984,0.0003,10]
[357243982,1743939152052,1000.0,0.0003,10]
[357243983,1743939198626,200.0,0.0003,10]
[357243984,1743939260137,207.95,0.0003,10]
[357243985,1743939912247,500.0,0.0003,10]
[357243997,1743939987044,198.38881363,0.0003,10]
[357244010,1743940137472,179.782767,0.00013699,2]
[357244016,1743940232891,-279.884627,0.00023295,2]
[357244017,1743940232903,-1419.49748092,0.00023295,2]
[357244018,1743940232914,-298.405004,0.00023295,2]
[357244019,1743940232925,-413.645,0.00023295,2]
[357244020,1743940232937,-2326.31002248,0.00023295,2]
[357244022,1743940232946,-300.0,0.00023393,2]
[357244024,1743940232955,-1420.32888187,0.00023394,2]
[357244026,1743940232979,-22561.03724991,0.00023394,2]
[357244028,1743940232991,-657.63716822,0.00023394,2]
[357244030,1743940233001,-163.80283178,0.00023456,2]
[357244062,1743940238506,-1053.51920931,0.00023456,2]
[357244063,1743940238515,-500.0,0.000235,2]
[357244064,1743940238524,-279.8846274,0.00023556,2]
[357244065,1743940238533,-1000.000001,0.00024,2]
[357244066,1743940238542,-341.9542489,0.00024355,2]
[357244067,1743940238551,-341.95424886,0.00024355,2]
[357244068,1743940238561,-341.95424886,0.00024356,2]
[357244069,1743940238570,-341.95424886,0.00024356,2]
[357244070,1743940238579,-341.95424886,0.00024356,2]
[357244071,1743940238588,-1997.0,0.0002436,2]
[357244072,1743940238597,-152.0,0.00024426,2]
[357244073,1743940238607,-500.0,0.00024453,2]
[357244074,1743940238616,-306.34365552,0.00024453,2]
[357244075,1743940238625,-500.0,0.00024453,2]
[357244076,1743940238634,-500.0,0.00024453,2]
[357244077,1743940238643,-6147.8620287,0.00024453,2]
[357244079,1743940238652,-240.66820196,0.00024453,2]
[357244080,1743940238661,-500.0,0.00024453,2]
[357244081,1743940238671,-6147.8620287,0.00024453,2]
[357244082,1743940238680,-6147.8620287,0.00024453,2]
[357244083,1743940238689,-535.46218348,0.00024453,2]
[357244084,1743940238698,-6147.8620287,0.00024453,2]
[357244085,1743940238707,-6147.8620287,0.00024453,2]
[357244086,1743940238716,-6147.8620287,0.00024453,2]
[357244087,1743940238725,-6147.8620287,0.00024453,2]
[357244088,1743940238733,-6147.8620287,0.00024453,2]
[357244089,1743940238742,-6147.8620287,0.00024453,2]
[357244090,1743940238751,-6147.8620287,0.00024453,2]
[357244091,1743940238760,-6147.8620287,0.00024453,2]
[357244092,1743940238769,-6147.8620287,0.00024453,2]
[357244093,1743940238778,-6147.8620287,0.00024453,2]
[357244094,1743940238787,-6147.8620287,0.00024453,2]
[357244095,1743940238796,-6147.8620287,0.00024453,2]
[357244096,1743940238805,-1205.42314343,0.00024453,2]
[357244097,1743940238852,-4942.43888527,0.00024453,2]
[357244098,1743940238861,-6147.8620287,0.00024453,2]
[357244099,1743940238871,-6147.8620287,0.00024453,2]
[357244100,1743940238880,-6147.8620287,0.00024453,2]
[357244101,1743940238889,-6147.8620287,0.00024453,2]
[357244102,1743940238898,-6147.8620287,0.00024453,2]
[357244103,1743940238907,-6147.8620287,0.00024453,2]
[357244104,1743940238916,-6147.8620287,0.00024453,2]
[357244105,1743940238925,-6147.8620287,0.00024453,2]
[357244106,1743940238934,-6147.8620287,0.00024453,2]
[357244107,1743940238943,-6147.8620287,0.00024453,2]
[357244108,1743940238953,-6147.8620287,0.00024453,2]
[357244109,1743940238962,-6147.8620287,0.00024453,2]
[357244110,1743940238971,-6147.8620287,0.00024453,2]
[357244111,1743940238982,-6147.8620287,0.00024453,2]
[357244112,1743940238991,-6147.8620287,0.00024453,2]
[357244113,1743940239001,-6147.8620287,0.00024453,2]
[357244114,1743940239011,-6147.8620287,0.00024453,2]
[357244115,1743940239020,-6147.8620287,0.00024453,2]
[357244116,1743940239030,-6147.8620287,0.00024453,2]
[357244117,1743940239040,-6147.8620287,0.00024453,2]
[357244118,1743940239049,-6147.8620287,0.00024453,2]
[357244119,1743940239058,-6147.8620287,0.00024453,2]
[357244120,1743940239067,-6147.8620287,0.00024453,2]
[357244121,1743940239076,-6147.8620287,0.00024453,2]
[357244122,1743940239085,-6147.8620287,0.00024453,2]
[357244123,1743940239094,-6147.8620287,0.00024453,2]
[357244124,1743940239103,-6147.8620287,0.00024453,2]
[357244125,1743940239112,-6147.8620287,0.00024453,2]
[357244126,1743940239122,-6147.8620287,0.00024453,2]
[357244127,1743940239131,-6147.8620287,0.00024453,2]
[357244128,1743940239141,-6147.8620287,0.00024453,2]
[357244129,1743940239150,-6147.8620287,0.00024453,2]
[357244130,1743940239159,-6147.8620287,0.00024453,2]
[357244131,1743940239168,-6147.8620287,0.00024453,2]
[357244132,1743940239178,-6147.8620287,0.00024453,2]
[357244133,1743940239187,-6147.8620287,0.00024453,2]
[357244134,1743940239197,-6147.8620287,0.00024453,2]
[357244135,1743940239206,-298.37370056,0.00024453,3]
[357244136,1743940239216,-151.0,0.00024454,7]
[357244137,1743940239225,-151.0,0.00024454,7]
[357244138,1743940239234,-236.721408,0.00024454,7]
[357244139,1743940239244,-305.328528,0.00024455,2]
[357244140,1743940239254,-305.328528,0.00024455,2]
[357244141,1743940239263,-305.328528,0.00024455,2]
[357244142,1743940239272,-305.328528,0.00024455,2]
[357244143,1743940239281,-305.328528,0.00024455,2]
[357244144,1743940239291,-305.328528,0.00024455,2]
[357244145,1743940239301,-305.328528,0.00024455,2]
[357244146,1743940239310,-305.328528,0.00024455,2]
[357244147,1743940239320,-151.0,0.00024455,7]
[357244148,1743940239330,-151.0,0.00024455,7]
[357244149,1743940239340,-151.0,0.00024455,7]
[357244150,1743940239350,-151.0,0.00024455,7]
[357244151,1743940239364,-151.0,0.00024455,7]
[357244152,1743940239373,-151.0,0.00024456,7]
[357244153,1743940239383,-151.0,0.00024456,7]
[357244154,1743940239392,-151.0,0.00024456,7]
[357244155,1743940239402,-151.0,0.00024456,7]
[357244156,1743940239411,-157.140564,0.00024457,7]
[357244157,1743940239420,-217.67215899,0.00024458,7]
[357244158,1743940239430,-151.0,0.00024458,7]
[357244159,1743940239440,-151.0,0.00024458,7]
[357244160,1743940239449,-151.0,0.00024458,7]
[357244161,1743940239458,-151.0,0.00024458,7]
[357244162,1743940239467,-151.0,0.00024458,7]
[357244163,1743940239476,-292.036578,0.00024458,7]
[357244164,1743940239485,-370000.0,0.00024459,2]
[357244165,1743940239495,-173.250658,0.00024459,7]
[357244166,1743940239504,-305.328528,0.00024459,2]
[357244167,1743940239514,-305.328528,0.00024459,2]
[357244168,1743940239523,-151.0,0.00024459,7]
[357244169,1743940239532,-500.0,0.00024473,2]
[357244170,1743940239542,-500.0,0.00024473,2]
[357244171,1743940239552,-500.0,0.00024473,2]
[357244172,1743940239564,-500.0,0.00024473,2]
[357244173,1743940239573,-500.0,0.00024473,2]
[357244174,1743940239584,-500.0,0.00024473,2]
[357244175,1743940239594,-500.0,0.00024473,2]
[357244176,1743940239603,-500.0,0.00024473,2]
[357244177,1743940239612,-500.0,0.00024473,2]
[357244178,1743940239622,-500.0,0.00024473,2]
[357244179,1743940239631,-500.0,0.00024473,2]
[357244180,1743940239641,-500.0,0.00024473,2]
[357244181,1743940239651,-419.28457398,0.0002449,2]
[357244182,1743940239661,-152.27,0.00024556,2]
[357244183,1743940239670,-151.0,0.00024557,7]
[357244184,1743940239680,-500.0,0.00024558,2]
[357244185,1743940239689,-2014.39655592,0.00024604,2]
[357244186,1743940239698,-11659.38884472,0.00024651,2]
[357244187,1743940239708,-305.328528,0.000248,2]
[357244188,1743940239717,-305.328528,0.000248,2]
[357244189,1743940239727,-151.0,0.000248,7]
[357244190,1743940239735,-290.48742975,0.00024873,2]
[357244191,1743940239744,-500.0,0.00024873,2]
[357244192,1743940239755,-492.22199676,0.00024873,2]
[357244193,1743940239765,-151.0,0.00024899,2]
[357244194,1743940239775,-305.328528,0.000249,2]
[357244195,1743940239785,-305.328528,0.000249,2]
[357244196,1743940239795,-273561.939453,0.000249,2]
[357244197,1743940239805,-6942.52646799,0.000249,5]
[357244198,1743940239815,-153.467397,0.000249,7]
[357244199,1743940239824,-200.16141026,0.00024973,2]
[357244200,1743940239833,-12009.56722739,0.00025,2]
[357244201,1743940239843,-2000.0,0.00025,7]
[357244202,1743940239852,-2000.0,0.00025,7]
[357244203,1743940239862,-2000.0,0.00025,7]
[357244204,1743940239871,-2000.0,0.00025,7]
[357244205,1743940239880,-2000.0,0.00025,7]
[357244206,1743940239890,-2000.0,0.00025,7]
[357244207,1743940239900,-2000.0,0.00025,7]
[357244208,1743940239909,-2000.0,0.00025,7]
[357244209,1743940239919,-2000.0,0.00025,7]
[357244210,1743940239928,-2000.0,0.00025,7]
[357244211,1743940239937,-12453.78326897,0.00025,7]
[357244212,1743940239947,-150.097,0.0002532,2]
[357244213,1743940239956,-150.103,0.0002532,2]
[357244214,1743940239965,-420.0,0.00025385,2]
[357244215,1743940239975,-401.0,0.00025463,2]
[357244216,1743940239984,-6942.52646782,0.00025624,6]
[357244217,1743940239993,-2200.0,0.00026266,2]
[357244218,1743940240003,-6942.52646782,0.00026348,6]
[357244219,1743940240012,-2000.0,0.000265,7]
[357244220,1743940240021,-1142.98024386,0.00027,2]
[357244221,1743940240034,-933.06746051,0.00027,2]
[357244236,1743940243770,-7088.13205056,0.00027,2]
[357244237,1743940243781,-305.328528,0.00027,2]
[357244238,1743940243791,-305.328528,0.00027,2]
[357244239,1743940243801,-6942.52646782,0.00027072,7]
[357244240,1743940243811,-1191.84,0.000273,2]
[357244241,1743940243822,-500.0,0.00027333,2]
[357244242,1743940243831,-285.907218,0.00027397,7]
[357244243,1743940243841,-500.0,0.00027397,5]
[357244244,1743940243851,-2000.0,0.000275,7]
[357244246,1743940243860,-2000.0,0.000275,7]
[357244248,1743940243870,-2000.0,0.000275,7]
[357244250,1743940243879,-2000.0,0.000275,7]
[357244251,1743940243889,-2000.0,0.000275,7]
[357244252,1743940243898,-2000.0,0.000275,7]
[357244253,1743940243908,-2000.0,0.000275,7]
[357244254,1743940243917,-2000.0,0.000275,7]
[357244255,1743940243928,-2000.0,0.000275,7]
[357244256,1743940243938,-2000.0,0.000275,7]
[357244257,1743940243947,-2000.0,0.000275,7]
[357244258,1743940243957,-2000.0,0.000275,7]
[357244259,1743940243967,-2000.0,0.000275,7]
[357244260,1743940243977,-2000.0,0.000275,7]
[357244261,1743940243987,-2000.0,0.000275,7]
[357244262,1743940243997,-587.0,0.00027545,2]
[357244263,1743940244008,-6942.52646782,0.00027797,7]
[357244264,1743940244017,-12525.30748765,0.00027964,2]
[357244265,1743940244027,-377.9673817,0.00028129,4]
[357244266,1743940244036,-151.0,0.00028167,7]
[357244267,1743940244045,-401.0,0.00028463,2]